bitfinex/quotes_ETHUSD_20250130
["timestamp","ask_amount","ask_price","bid_price","bid_amount"]
[1738231421349,3.0,3221.7,3221.1,3.10445]
[1738231421555,6.10397,3221.7,3221.2,0.6804]
[1738231422219,3.0,3221.7,3221.2,3.78476]
[1738231422410,3.10368,3222.0,3221.3,3.10432]
[1738231422411,3.0,3221.9,3221.3,3.10432]
[1738231422921,3.0,3221.7,3221.3,3.10432]
[1738231423125,3.10368,3222.0,3221.4,3.78457]
[1738231423339,3.10368,3222.0,3221.3,3.793237]
[1738231423340,3.10339,3222.3,3221.7,3.10391]
[1738231423642,3.10357,3222.1,3221.6,0.6804]
[1738231424065,3.0,3222.2,3221.6,0.6804]
[1738231424564,3.10347,3222.2,3221.6,0.6804]
[1738231424769,3.10339,3222.3,3221.7,3.10388]
[1738231424920,3.1032,3222.5,3221.8,0.03103604]
[1738231425124,3.1032,3222.5,3221.9,0.6804]
[1738231425775,3.10334,3222.4,3221.9,0.6804]
[1738231426663,3.1034,3222.3,3221.9,0.6804]
[1738231426870,3.1032,3222.5,3221.9,3.78413]
[1738231427237,4.34503,3223.3,3222.6,3.10305]
[1738231427441,3.10205,3223.7,3223.0,3.10269]
[1738231427660,3.10189,3223.9,3223.1,0.03102373]
[1738231427839,0.7848,3224.2,3223.0,3.10269]
[1738231427840,0.7848,3224.2,3223.3,0.6804]
[1738231428023,3.10202,3223.7,3223.3,0.6804]
[1738231428752,3.10184,3223.9,3223.3,0.6804]
[1738231428939,3.412024,3223.9,3223.3,0.6804]
[1738231429146,3.10205,3223.7,3223.3,0.6804]
[1738231429524,3.0,3223.8,3223.3,0.6804]
[1738231429876,3.10184,3223.9,3223.3,3.7828]
[1738231430034,3.10193,3223.8,3223.3,0.6804]
[1738231431272,3.10209,3223.7,3223.3,0.6804]
[1738231431445,3.10229,3223.5,3222.9,0.6804]
[1738231431648,0.688628,3224.1,3222.9,0.6804]
[1738231431858,3.10245,3223.3,3222.9,0.6804]
[1738231433297,3.10269,3223.0,3222.5,0.6804]
[1738231433589,3.1028,3222.9,3222.5,0.6804]
[1738231433805,3.10298,3222.8,3222.2,3.78384]
[1738231434693,3.10313,3222.6,3222.2,0.6804]
[1738231435651,3.10319,3222.5,3222.2,0.6804]
[1738231436394,3.10319,3222.5,3221.9,3.78415]
[1738231436547,3.10319,3222.5,3221.9,0.6804]
[1738231436894,3.10355,3222.2,3221.9,0.6804]
[1738231437204,3.10355,3222.2,3221.6,3.10401]
[1738231437348,3.10358,3222.1,3221.6,3.10401]
[1738231437892,6.10344,3222.3,3221.7,3.10394]
[1738231439263,3.10319,3222.5,3221.8,6.23859675]
[1738231439264,3.0,3222.4,3221.8,6.23859675]
[1738231439469,0.610323,3222.4,3221.5,0.6804]
[1738231439670,3.10366,3222.1,3221.5,0.6804]
[1738231439895,3.10369,3222.0,3221.5,0.6804]
[1738231440061,3.10366,3222.1,3221.5,0.6804]
[1738231440583,3.10386,3221.8,3221.5,0.6804]
[1738231440755,3.10399,3221.7,3221.2,0.6804]
[1738231440949,3.10411,3221.6,3221.2,0.6804]
[1738231441194,3.10399,3221.7,3221.2,0.6804]
[1738231441893,3.10372,3222.0,3221.3,3.10433]
[1738231442061,3.10376,3221.9,3221.4,3.10423]
[1738231442250,3.104,3221.7,3221.1,3.10452]
[1738231442449,0.7648,3222.3,3221.2,0.03104357]
[1738231442691,3.0,3222.0,3221.5,0.6804]
[1738231442991,3.0,3222.0,3221.5,3.78453]
[1738231443193,3.10363,3222.1,3221.5,3.78453]
[1738231443194,3.10363,3222.1,3221.6,3.104]
[1738231444257,3.10369,3222.0,3221.5,0.6804]
[1738231444505,3.10363,3222.1,3221.5,0.6804]
[1738231444901,3.10403,3221.7,3221.2,0.6804]
[1738231445201,3.1041,3221.6,3221.2,0.1804]
[1738231445789,3.1042,3221.5,3220.9,8.81]
[1738231445961,3.1041,3221.6,3220.8,6.588071]
[1738231445962,3.10424,3221.4,3220.8,3.483301]
[1738231446154,3.10424,3221.4,3220.9,3.10472]
[1738231447008,3.1041,3221.6,3221.0,3.10458]
[1738231447559,3.10423,3221.5,3220.8,3.483281]
[1738231447804,3.10423,3221.5,3220.8,3.51432538]
[1738231448096,3.10423,3221.5,3220.9,3.10469]
[1738231448334,3.10423,3221.5,3221.0,0.1804]
[1738231448684,3.10428,3221.4,3221.0,0.1804]
[1738231449997,3.10449,3221.2,3221.0,0.1804]
[1738231450220,3.10449,3221.2,3220.7,0.1804]
[1738231451013,0.8028,3221.4,3220.2,9.75073017]
[1738231451014,3.10481,3220.8,3220.4,0.1804]
[1738231451189,3.10481,3220.8,3220.2,0.3106]
[1738231451483,3.10502,3220.6,3220.2,0.3106]
[1738231451686,3.10496,3220.7,3220.2,0.3106]
[1738231451883,3.10496,3220.7,3220.2,3.775632]
[1738231452124,3.10503,3220.6,3220.2,0.670242]
[1738231452329,3.1051,3220.5,3220.2,0.3106]
[1738231452701,3.10496,3220.7,3220.2,0.3106]
[1738231453639,3.10496,3220.7,3220.2,3.41593]
[1738231454135,6.20957,3220.9,3220.2,3.41593]
[1738231454333,3.10484,3220.8,3220.2,3.41593]
[1738231454553,3.10499,3220.7,3220.1,3.28581]
[1738231454895,3.10527,3220.4,3219.9,3.10565]
[1738231455228,3.10527,3220.4,3219.8,0.1804]
[1738231455415,0.7564,3220.6,3219.8,0.1804]
[1738231455617,3.10559,3220.0,3219.5,3.28644]
[1738231455810,3.10559,3220.0,3219.5,3.78208249]
[1738231456228,6.21124,3220.0,3219.5,3.78208249]
[1738231456436,3.1057,3219.9,3219.5,0.67604249]
[1738231457333,3.10559,3220.0,3219.5,0.67604249]
[1738231457536,3.10559,3220.0,3219.5,3.73208249]
[1738231458330,3.10559,3220.0,3219.5,3.23644]
[1738231459821,3.10542,3220.2,3219.5,3.23644]
[1738231460017,3.10542,3220.2,3219.6,3.10596]
[1738231460217,3.1056,3220.0,3219.5,0.1304]
[1738231460424,3.10568,3219.9,3219.5,0.1304]
[1738231461270,3.10579,3219.8,3219.2,0.1304]
[1738231461443,3.10598,3219.6,3219.2,0.1304]
[1738231461770,3.1061,3219.5,3219.2,0.1304]
[1738231462066,3.1061,3219.5,3218.9,3.10659]
[1738231462226,3.1061,3219.5,3219.0,0.1304]
[1738231462838,3.10626,3219.3,3219.0,0.1304]
[1738231463038,3.10643,3219.2,3218.7,0.1304]
[1738231463271,3.10626,3219.3,3218.7,0.1304]
[1738231463443,3.10647,3219.1,3218.7,0.1304]
[1738231463777,3.10647,3219.1,3218.3,3.10719]
[1738231463778,3.10656,3219.0,3218.3,3.10719]
[1738231463971,3.10668,3218.9,3218.4,0.1304]
[1738231464534,3.10677,3218.8,3218.4,0.1304]
[1738231466029,3.10688,3218.7,3218.2,3.1073]
[1738231466223,0.8031,3218.8,3218.1,0.1304]
[1738231466429,3.10709,3218.5,3218.1,0.1304]
[1738231466729,3.10733,3218.2,3217.8,0.1304]
[1738231466947,3.10733,3218.2,3217.7,3.2744971]
[1738231467196,3.10733,3218.2,3217.7,0.1667771]
[1738231467398,3.10714,3218.4,3217.7,0.1667771]
[1738231467555,3.10727,3218.3,3217.7,3.2745271]
[1738231468155,0.310709,3218.5,3217.8,3.10771]
[1738231468356,3.1071,3218.5,3217.9,3.1076]
[1738231468570,3.10714,3218.4,3217.8,3.1077]
[1738231468861,3.10688,3218.7,3217.8,3.1077]
[1738231469057,3.10702,3218.6,3218.0,3.10747]
[1738231469288,3.8031,3218.8,3218.3,3.10723]
[1738231469488,3.10651,3219.1,3218.3,0.634504]
[1738231469801,0.8217,3219.2,3218.3,0.634504]
[1738231469802,3.92812,3219.2,3218.6,3.10691]
[1738231469986,3.0,3219.1,3218.4,3.10711]
[1738231470197,3.10664,3219.0,3218.4,3.10711]
[1738231470782,6.10654,3219.1,3218.4,3.10711]
[1738231471009,0.7805,3219.5,3218.7,0.1304]
[1738231471213,3.88664,3219.5,3218.9,3.10663]
[1738231471774,3.88664,3219.5,3218.8,3.10674]
[1738231471775,6.10623,3219.4,3218.8,3.10674]
[1738231472007,6.10623,3219.4,3218.7,0.1304]
[1738231472008,3.10633,3219.3,3218.7,3.23715]
[1738231472313,3.10633,3219.3,3218.8,3.10673]
[1738231473000,3.0,3219.4,3218.9,3.10664]
[1738231473474,6.10619,3219.4,3218.8,3.10673]
[1738231473873,3.10699,3218.6,3217.9,3.10754]
[1738231474071,3.10699,3218.6,3218.0,3.10751]
[1738231474511,3.10679,3218.8,3218.2,3.10731]
[1738231475476,3.10697,3218.6,3218.1,0.03107091]
[1738231475691,3.10704,3218.5,3218.0,3.1075]
[1738231476088,3.10704,3218.5,3217.9,3.1076]
[1738231476465,3.10704,3218.5,3218.0,3.1075]
[1738231477304,0.7758,3218.4,3217.8,0.1304]
[1738231477489,3.10717,3218.4,3217.8,0.1304]
[1738231477689,3.10691,3218.7,3218.1,3.10742]
[1738231477890,3.10696,3218.6,3218.1,3.10742]
[1738231478094,3.10696,3218.6,3217.8,3.26913196]
[1738231478285,3.10706,3218.5,3218.0,3.10751]
[1738231478671,3.10696,3218.6,3218.0,3.10751]
[1738231478882,3.10705,3218.5,3218.0,3.10751]
[1738231479111,3.10715,3218.4,3217.8,3.61041487]
[1738231479407,3.10749,3218.1,3217.5,0.36050662]
[1738231479630,3.90929,3218.1,3217.5,0.1304]
[1738231479913,6.10771,3217.8,3217.4,0.1]
[1738231480663,6.90951,3217.8,3217.4,0.1]
[1738231480868,7.530372,3217.8,3217.4,0.1]
[1738231481317,8.095372,3217.8,3217.4,0.1]
[1738231481987,7.537872,3217.8,3217.4,0.1]
[1738231482189,6.90951,3217.8,3217.4,0.1]
[1738231482369,3.10626,3219.3,3217.8,3.23811]
[1738231482710,3.10709,3218.5,3217.8,3.23811]
[1738231482868,3.10709,3218.5,3218.0,3.10749]
[1738231483069,3.10686,3218.7,3218.1,3.10741]
[1738231483316,3.10686,3218.7,3217.8,0.1304]
[1738231483317,3.10668,3218.9,3218.2,3.10729]
[1738231483521,6.21342,3218.9,3218.3,3.10722]
[1738231483671,3.10668,3218.9,3218.3,3.10722]
[1738231484086,3.1067,3218.9,3218.3,3.10722]
[1738231484574,3.1067,3218.9,3218.2,3.1073]
[1738231485081,6.10655,3219.0,3218.4,3.10713]
[1738231485270,3.0,3219.0,3218.4,3.23753]
[1738231485472,3.0,3219.0,3218.6,3.10691]
[1738231486106,3.0,3219.0,3218.4,6.34459]
[1738231486543,3.0,3219.0,3218.5,3.10695]
[1738231487903,0.8178,3219.4,3218.4,0.1304]
[1738231488135,0.8178,3219.4,3218.0,0.311]
[1738231488136,3.10684,3218.7,3218.1,0.1304]
[1738231488322,3.10684,3218.7,3218.1,0.485282]
[1738231488522,3.10684,3218.7,3218.1,3.592672]
[1738231489320,3.10684,3218.7,3218.2,3.1073]
[1738231490351,6.213,3219.1,3218.2,3.13839226]
[1738231490535,3.10648,3219.1,3218.5,3.10699]
[1738231490857,3.10626,3219.3,3218.6,3.10687]
[1738231491154,3.10646,3219.1,3218.6,3.10687]
[1738231491448,3.10646,3219.1,3218.4,3.10704]
[1738231491449,3.0,3219.0,3218.4,3.10704]
[1738231491607,3.10666,3218.9,3218.4,3.10704]
[1738231492435,3.0,3219.0,3218.4,3.10704]
[1738231492623,6.10657,3219.0,3218.4,3.10704]
[1738231494518,3.10685,3218.7,3218.2,3.10727]
[1738231494863,0.8187,3218.7,3217.8,3.23804]
[1738231495166,3.10709,3218.5,3217.9,3.10758]
[1738231496447,3.10709,3218.5,3218.0,3.1075]
[1738231496629,3.92556,3218.7,3218.1,3.10735]
[1738231497764,3.92556,3218.7,3218.0,3.33922642]
[1738231498072,3.92556,3218.7,3218.2,3.10729]
[1738231498375,3.10709,3218.5,3218.0,0.57868906]
[1738231498584,6.21422,3218.5,3218.1,0.23172642]
[1738231499373,3.10709,3218.5,3218.1,0.23172642]
[1738231500286,3.10717,3218.4,3218.1,0.23172642]
[1738231500658,3.10717,3218.4,3217.9,3.10761]
[1738231501886,3.10717,3218.4,3217.8,3.2381]
[1738231502248,3.10717,3218.4,3217.8,3.23805]
[1738231502592,3.0,3218.6,3218.2,3.10726]
[1738231503359,3.10665,3218.9,3218.4,3.23752]
[1738231504446,3.90009,3219.1,3218.6,3.10692]
[1738231504646,3.10649,3219.1,3218.6,3.10692]
[1738231505386,3.10654,3219.1,3218.5,3.10699]
[1738231505591,3.10655,3219.0,3218.4,3.23752]
[1738231505793,3.10655,3219.0,3218.5,3.10703]
[1738231505951,6.10645,3219.2,3218.6,3.10693]
[1738231506150,3.10647,3219.1,3218.6,3.10693]
[1738231506347,3.0,3219.2,3218.6,3.10693]
[1738231506664,3.0,3219.2,3218.8,3.1067]
[1738231506865,3.86841,3219.7,3219.1,3.10645]
[1738231507203,3.0,3219.6,3219.1,3.10645]
[1738231507486,3.10612,3219.5,3218.9,3.237]
[1738231507849,3.10628,3219.3,3218.9,0.1304]
[1738231508293,3.10628,3219.3,3218.8,3.10668]
[1738231508511,3.10628,3219.3,3218.6,3.23728]
[1738231508708,3.10648,3219.1,3218.6,3.23727]
[1738231511290,3.10628,3219.3,3218.6,3.23727]
[1738231511605,3.10628,3219.3,3218.7,3.10683]
[1738231511789,3.0,3219.4,3219.0,3.10646]
[1738231511991,3.86842,3219.7,3219.1,3.10637]
[1738231512238,6.97436,3219.7,3219.1,3.10637]
[1738231512367,3.86842,3219.7,3219.1,3.10637]
[1738231512872,3.86842,3219.7,3219.2,0.1304]
[1738231513871,3.0,3219.8,3219.2,0.1304]
[1738231514217,3.10588,3219.7,3219.2,0.1304]
[1738231514719,3.10624,3219.4,3218.9,0.1304]
[1738231514895,3.10624,3219.4,3218.1,0.311]
[1738231514896,3.10636,3219.3,3218.7,3.23719]
[1738231515100,3.10636,3219.2,3218.7,3.23715]
[1738231516370,3.10645,3219.1,3218.4,3.23747]
[1738231517116,3.10675,3218.8,3218.4,0.1304]
[1738231517265,3.10675,3218.8,3218.3,3.10715]
[1738231518493,3.10659,3219.0,3218.3,3.10715]
[1738231518679,3.10666,3218.9,3218.4,3.10712]
[1738231519081,3.10645,3219.2,3218.6,3.10693]
[1738231519287,3.90308,3219.4,3218.7,3.23717]
[1738231519511,3.0,3219.2,3218.7,3.23717]
[1738231519819,3.10636,3219.2,3218.7,3.23717]
[1738231520823,3.10636,3219.2,3218.7,0.1304]
[1738231521031,3.0,3219.1,3218.7,0.1304]
[1738231521493,6.10646,3219.1,3218.7,0.1304]
[1738231522923,3.0,3219.1,3218.7,0.1304]
[1738231523231,3.10655,3219.0,3218.4,3.23748]
[1738231523780,3.10708,3218.5,3218.0,0.311]
[1738231524104,3.10708,3218.5,3218.0,3.4185]
[1738231524506,3.10708,3218.5,3218.0,3.1075]
[1738231524686,6.21418,3218.5,3218.0,3.1075]
[1738231525000,3.10718,3218.4,3217.9,3.238]
[1738231525323,3.10718,3218.4,3217.9,3.92330098]
[1738231525500,3.10708,3218.5,3217.9,3.92330098]
[1738231525701,6.21421,3218.5,3217.9,3.92330098]
[1738231526229,3.10708,3218.5,3217.9,0.1304]
[1738231526602,3.10713,3218.4,3217.9,3.23799]
[1738231527691,3.10749,3218.1,3217.7,0.1667771]
[1738231527846,3.10753,3218.0,3217.7,0.1667771]
[1738231528386,3.10771,3217.8,3217.7,0.1667771]
[1738231528787,7.796295,3217.8,3217.7,0.1667771]
[1738231529893,6.86401,3217.8,3217.7,0.1667771]
[1738231530876,3.0,3217.8,3217.7,0.1667771]
[1738231532171,3.0,3217.8,3217.7,0.23766904]
[1738231534590,6.10771,3217.8,3217.7,0.23766904]
[1738231535304,6.86851,3217.8,3217.7,0.23766904]
[1738231535462,7.866129,3217.8,3217.7,0.23766904]
[1738231536006,7.866129,3217.8,3217.7,0.1667771]
[1738231539490,8.431129,3217.8,3217.7,0.1667771]
[1738231540367,9.0638423,3217.8,3217.7,0.1667771]
[1738231543507,9.1206423,3217.8,3217.7,0.1667771]
[1738231543894,9.1206423,3217.8,3217.4,0.1]
[1738231543895,7.4675,3217.5,3217.4,0.1]
[1738231544406,3.92529,3217.2,3216.1,3.10934]
[1738231544605,6.92529,3217.2,3216.1,3.10934]
[1738231545110,7.47529,3217.2,3216.0,0.1304]
[1738231546099,7.47529,3217.2,3216.0,3.23979]
[1738231546410,7.68429,3217.2,3216.0,0.1304]
[1738231546719,8.681909,3217.2,3216.0,0.1304]
[1738231547364,8.681909,3217.2,3215.6,3.10979]
[1738231549414,8.681909,3217.2,3217.1,1e-05]
[1738231550324,3.10829,3217.2,3217.1,1e-05]
[1738231551008,3.10829,3217.2,3217.1,0.07297195]
[1738231552016,3.10819,3217.4,3217.1,0.07297195]
[1738231552017,3.0,3217.3,3217.1,0.07297195]
[1738231552704,6.10829,3217.2,3217.1,0.07297195]
[1738231554214,3.0,3217.2,3217.1,0.07297195]
[1738231555214,6.10829,3217.2,3217.1,0.07297195]
[1738231555524,3.0,3217.2,3217.1,0.07297195]
[1738231557980,6.10829,3217.2,3217.1,0.07297195]
[1738231558318,3.0,3217.2,3217.1,0.07297195]
[1738231558882,3.10797,3217.6,3217.1,0.20337195]
[1738231559103,3.10814,3217.4,3217.1,0.13041]
[1738231559311,6.10819,3217.3,3217.2,0.07284595]
[1738231560182,6.10802,3217.5,3217.2,0.07284595]
[1738231560430,3.0,3217.3,3217.2,0.07284595]
[1738231560729,6.10819,3217.3,3217.2,0.07284595]
[1738231561543,6.10805,3217.5,3217.2,0.07284595]
[1738231562446,3.10813,3217.4,3217.2,0.07284595]
[1738231563028,3.10813,3217.4,3217.1,0.13041]
[1738231563210,3.10813,3217.4,3217.3,0.07283744]
[1738231563412,3.10813,3217.4,3217.2,0.07284595]
[1738231563640,3.0,3217.5,3217.3,0.07283744]
[1738231564146,3.10817,3217.4,3217.1,0.13041]
[1738231565111,3.0,3217.7,3217.1,0.13041]
[1738231565349,0.3,3217.6,3217.1,0.13041]
[1738231565548,3.10829,3217.2,3217.1,0.13041]
[1738231566047,6.10789,3217.7,3217.1,0.13041]
[1738231566267,3.10805,3217.5,3217.1,0.13041]
[1738231567037,6.10789,3217.7,3217.1,3.23874]
[1738231567237,9.21579,3217.7,3217.1,3.23874]
[1738231567468,6.10789,3217.7,3217.1,3.23874]
[1738231567714,3.0,3217.7,3217.3,3.10818]
[1738231567941,3.10732,3218.3,3217.6,3.10782]
[1738231568149,3.10735,3218.2,3217.7,3.10774]
[1738231568319,3.10732,3218.3,3217.8,0.1304]
[1738231568632,3.10744,3218.1,3217.8,0.1304]
[1738231568847,3.10727,3218.3,3217.8,0.1304]
[1738231569232,3.10739,3218.2,3217.8,0.1304]
[1738231571961,0.61812503,3218.6,3217.8,0.1304]
[1738231572164,3.0,3218.6,3218.1,3.10734]
[1738231572502,3.0,3218.6,3218.3,0.1304]
[1738231572863,3.10668,3218.9,3218.4,0.07166182]
[1738231573067,6.10674,3218.8,3218.4,0.07166182]
[1738231573374,1.002352,3218.8,3218.4,0.07166182]
[1738231573573,3.10703,3218.5,3218.4,0.07166182]
[1738231573769,3.10689,3218.7,3218.0,6.21488]
[1738231573977,3.10689,3218.7,3218.4,0.07166182]
[1738231574136,3.10689,3218.7,3218.1,3.10741]
[1738231574336,3.10689,3218.7,3218.5,0.07165332]
[1738231574671,3.10699,3218.6,3218.1,3.10741]
[1738231575045,3.10709,3218.5,3217.9,3.23799]
[1738231575379,3.10699,3218.6,3217.9,3.23795]
[1738231575579,3.10699,3218.6,3218.0,3.10747]
[1738231576180,3.10705,3218.5,3218.0,3.10747]
[1738231577779,3.10684,3218.7,3218.1,3.10742]
[1738231577989,3.107,3218.6,3218.0,3.10745]
[1738231578343,3.1072,3218.4,3217.9,0.454195]
[1738231578542,3.1072,3218.4,3217.9,0.1304]
[1738231579356,3.1072,3218.4,3217.9,3.23801]
[1738231579566,3.1072,3218.4,3217.9,0.1304]
[1738231579953,3.10729,3218.3,3217.9,0.1304]
[1738231580761,3.1072,3218.4,3217.9,0.1304]
[1738231581085,3.10738,3218.2,3217.9,0.1304]
[1738231581740,3.10699,3218.6,3218.0,3.10747]
[1738231582287,3.10704,3218.5,3218.0,3.10747]
[1738231583259,3.10703,3218.6,3218.0,3.10743]
[1738231583461,3.10703,3218.5,3218.0,3.10743]
[1738231583871,3.10703,3218.6,3218.1,3.10741]
[1738231584698,3.0,3218.7,3218.2,3.10729]
[1738231585000,3.10695,3218.6,3218.1,3.10741]
[1738231585806,3.0,3218.7,3218.1,3.10741]
[1738231585987,6.10684,3218.7,3218.2,3.10732]
[1738231586157,3.10696,3218.6,3218.1,3.10741]
[1738231587712,3.10696,3218.6,3218.0,3.10748]
[1738231587918,3.10661,3219.0,3218.5,3.10703]
[1738231588121,3.10661,3219.0,3218.6,0.07161149]
[1738231588418,3.10661,3219.0,3218.4,3.10708]
[1738231588711,3.10661,3219.0,3218.5,3.10698]
[1738231589017,3.10661,3219.0,3218.6,0.07156704]
[1738231590511,3.10642,3219.2,3218.7,3.10683]
[1738231590724,3.10642,3219.2,3218.8,0.20195005]
[1738231591704,3.10645,3219.1,3218.8,0.20195005]
[1738231591938,3.10642,3219.2,3218.8,0.20195005]
[1738231592095,6.21284,3219.2,3218.8,0.20195005]
[1738231592297,3.10642,3219.2,3218.8,0.20195005]
[1738231592918,3.10646,3219.1,3218.8,0.20195005]
[1738231594630,3.10636,3219.2,3218.8,0.20195005]
[1738231594936,0.8212,3219.4,3218.8,3.30868005]
[1738231595132,6.10616,3219.5,3218.9,3.10656]
[1738231595435,3.0,3219.5,3219.0,3.17794974]
[1738231595605,3.10598,3219.6,3219.1,3.10638]
[1738231595804,3.1061,3219.5,3219.0,3.17794974]
[1738231596038,3.1061,3219.5,3219.2,0.071105]
[1738231596236,3.1061,3219.5,3219.1,0.07111349]
[1738231596445,0.31061,3219.4,3218.8,0.1304]
[1738231596607,0.31061,3219.4,3218.3,3.23758]
[1738231596608,3.10681,3218.8,3218.3,3.23758]
[1738231598447,0.7767,3219.0,3218.3,0.1304]
[1738231598603,3.10677,3218.8,3218.3,3.23762]
[1738231599358,3.10677,3218.8,3218.2,3.10727]
[1738231600853,3.10677,3218.8,3218.3,3.10714]
[1738231602262,6.21358,3218.8,3218.3,3.10714]
[1738231602858,3.10677,3218.8,3218.3,3.10722]
[1738231603059,3.10677,3218.8,3218.2,3.1073]
[1738231603219,3.10677,3218.8,3218.4,0.0688611]
[1738231603418,3.10677,3218.8,3218.3,3.17608959]
[1738231603652,3.10677,3218.8,3218.5,0.0688526]
[1738231603820,6.21359,3218.8,3218.4,0.0688611]
[1738231604019,6.21359,3218.8,3218.6,0.0688441]
[1738231604217,3.10677,3218.8,3218.5,0.0688526]
[1738231604420,6.2136,3218.8,3218.7,0.06884672]
[1738231604724,6.91261,3218.8,3218.7,0.06884672]
[1738231604935,3.8058,3218.8,3218.3,3.10721]
[1738231605121,3.10677,3218.8,3218.4,0.06889442]
[1738231609374,6.10665,3218.9,3218.4,3.17601442]
[1738231611461,3.10665,3218.9,3218.4,3.17601442]
[1738231611771,0.2488,3218.8,3218.7,0.1304]
[1738231611980,0.2488,3218.8,3218.7,3.23724]
[1738231612129,0.2488,3218.8,3218.7,3.30614967]
[1738231615552,0.2488,3218.8,3218.7,0.06890967]
[1738231615751,0.2488,3218.8,3218.5,0.1304]
[1738231615932,0.2488,3218.8,3218.6,3.17576816]
[1738231616138,0.2488,3218.8,3218.7,3.58588236]
[1738231616431,0.2488,3218.8,3218.7,3.65479203]
[1738231616636,0.2488,3218.8,3218.7,3.62372649]
[1738231617280,0.2488,3218.8,3218.7,3.85562432]
[1738231617641,0.2488,3218.8,3218.7,3.4076475]
[1738231619556,0.2488,3218.8,3218.7,3.56911196]
[1738231620770,0.2488,3218.8,3218.7,3.5380475]
[1738231622205,0.2488,3218.8,3218.7,3.4076475]
[1738231622497,0.2488,3218.8,3218.7,3.56911297]
[1738231622699,0.2488,3218.8,3218.7,4.23670927]
[1738231623010,0.2488,3218.8,3218.7,4.52643696]
[1738231623499,0.2488,3218.8,3218.7,7.52643696]
[1738231623658,0.2488,3218.8,3218.7,7.49537149]
[1738231624201,0.2488,3218.8,3218.7,7.86575134]
[1738231624371,0.2488,3218.8,3218.7,4.86575134]
[1738231624569,0.2488,3218.8,3218.7,1.09131504]
[1738231624775,0.2488,3218.8,3218.7,0.96091504]
[1738231625154,3.35554,3218.8,3218.7,0.96091504]
[1738231626002,3.35554,3218.8,3218.7,0.35863736]
[1738231626807,3.35554,3218.8,3218.7,0.06890967]
[1738231626808,4.13254,3218.8,3218.7,0.06890967]
[1738231626986,4.856458,3218.8,3218.7,0.06890967]
[1738231627298,4.856458,3218.8,3218.3,0.23189783]
[1738231627503,4.856458,3218.8,3218.7,0.06613005]
[1738231627700,4.856458,3218.8,3218.2,3.10727]
[1738231627701,4.856458,3218.8,3218.3,0.1304]
[1738231627904,4.13254,3218.8,3218.7,0.06613005]
[1738231628059,4.13254,3218.8,3218.2,3.10725]
[1738231628261,4.13254,3218.8,3218.7,0.06613005]
[1738231628483,4.13254,3218.8,3218.4,0.2895933]
[1738231628690,4.13254,3218.8,3218.7,0.06625225]
[1738231628870,4.13254,3218.8,3218.4,0.2895933]
[1738231629086,4.13254,3218.8,3218.7,0.06625225]
[1738231629271,4.13254,3218.8,3218.4,0.2895933]
[1738231629460,4.13254,3218.8,3218.7,0.06625225]
[1738231629666,4.13254,3218.8,3218.4,0.2895933]
[1738231629869,4.13254,3218.8,3218.7,0.06625225]
[1738231630058,1.0258,3218.8,3218.5,0.2895933]
[1738231630264,1.0258,3218.8,3218.7,0.06625225]
[1738231630465,0.2488,3218.8,3218.6,0.06626074]
[1738231630792,0.2488,3218.8,3218.7,3.17309225]
[1738231633001,0.2488,3218.8,3218.7,0.35572465]
[1738231633571,0.2488,3218.8,3218.7,3.46256465]
[1738231635787,4.12454,3218.8,3218.7,0.35572465]
[1738231636015,4.536994,3218.8,3218.7,0.35572465]
[1738231636449,4.536994,3218.8,3218.7,0.2894724]
[1738231637406,4.536994,3218.8,3217.8,3.10767]
[1738231637407,3.10727,3218.3,3217.9,0.2894724]
[1738231637645,3.85807,3218.3,3217.9,0.2894724]
[1738231638650,0.7508,3218.3,3217.9,3.3970724]
[1738231638950,3.10707,3218.5,3218.0,3.10748]
[1738231639247,3.10707,3218.5,3218.0,3.62867193]
[1738231639547,6.21418,3218.5,3218.0,0.52119193]
[1738231639707,3.10723,3218.3,3218.0,0.52119193]
[1738231640404,3.10723,3218.3,3218.1,0.2894724]
[1738231640804,3.86062,3218.2,3218.1,0.2894724]
[1738231641706,3.86062,3218.2,3217.7,0.37075125]
[1738231641907,3.1076,3218.0,3217.7,0.37075125]
[1738231643208,3.1076,3218.0,3217.4,3.108]
[1738231644458,3.10768,3217.9,3217.2,3.58367986]
[1738231644634,3.10768,3217.9,3217.3,0.42184029]
[1738231644833,0.7533,3218.2,3217.3,0.42184029]
[1738231645153,3.10763,3217.9,3217.2,6.69181986]
[1738231645364,3.10763,3217.9,3217.2,3.58359986]
[1738231645520,3.10774,3217.8,3217.2,3.58359986]
[1738231645919,3.10802,3217.5,3217.2,0.34499986]
[1738231646156,0.8313,3217.6,3217.2,3.45322986]
[1738231646948,0.8313,3217.6,3217.2,0.34499986]
[1738231647153,3.9393,3217.6,3217.2,0.34499986]
[1738231648258,3.10806,3217.5,3217.3,0.06479744]
[1738231648444,3.10809,3217.4,3217.3,0.06479744]
[1738231648962,3.10802,3217.5,3217.3,0.06479744]
[1738231649268,3.93929,3217.6,3217.3,0.06479744]
[1738231650259,3.10804,3217.5,3217.3,0.06479744]
[1738231651769,3.10809,3217.4,3217.3,0.06479744]
[1738231655668,3.812833,3217.4,3217.3,0.06479744]
[1738231655875,4.586833,3217.4,3217.3,0.06479744]
[1738231656029,4.586833,3217.4,3217.2,0.34499986]
[1738231656229,3.10819,3217.3,3217.2,0.34499986]
[1738231656925,6.10819,3217.3,3217.2,0.34499986]
[1738231657133,6.86571368,3217.3,3217.2,0.34499986]
[1738231658274,7.64861368,3217.3,3217.2,0.34499986]
[1738231659637,6.10829,3217.2,3217.1,1e-05]